[Event "Queens Festival Final Team 2022"]
[Site "Tornelo"]
[Date "2022.06.26"]
[Round "2.1"]
[White "Subramanian, Anusha"]
[Black "Shah, Riya"]
[Result "1-0"]
[ECO "E60"]
[WhiteElo "1671"]
[BlackElo "1559"]
[Annotator "NA RC"]
[PlyCount "161"]
[EventDate "2022.06.24"]
[EventType "team-tourn"]
[EventCountry "NET"]
[SourceTitle "playchess.com"]
[Source "ChessBase"]
[SourceQuality "1"]
[WhiteTeam "England"]
[BlackTeam "Kenya"]
[WhiteTeamCountry "ENG"]
[BlackTeamCountry "KEN"]
[TimeControl "180+2"]

1. b3 {[%emt 0:00:02]} Nf6 {[%emt 0:00:09]} 2. Bb2 {[%emt 0:00:02]} g6 {[%emt 0:00:01]} 3. Nf3 {[%emt 0:00:03]} Bg7 {[%emt 0:00:01]} 4. e3 {[%emt 0:00:02]} d6 {[%emt 0:00:04]} 5. c4 {[%emt 0:00:08]} c5 {[%emt 0:00:03]} 6. d4 {[%emt 0:00:05]} cxd4 {[%emt 0:00:01]} 7. Nxd4 {[%emt 0:00:02]} Nc6 {[%emt 0:00:03]} 8. Be2 {[%emt 0:00:03]} O-O {[%emt 0:00:02]} 9. O-O {[%emt 0:00:05]} e5 {[%emt 0:00:13]} 10. Nb5 {[%emt 0:00:07]} Ne8 {[%emt 0:00:10]} 11. Ba3 {[%emt 0:00:05]} e4 {[%emt 0:00:21]} 12. N1c3 {[%emt 0:00:02]} a6 {[%emt 0:00:02]} 13. Nxd6 {[%emt 0:00:21]} Nxd6 {[%emt 0:00:03]} 14. Bxd6 {[%emt 0:00:45]} Bxc3 {[%emt 0:00:10]} 15. Rc1 {[%emt 0:00:05]} Bg7 {[%emt 0:00:14]} 16. Bxf8 {[%emt 0:00:03]} Kxf8 {[%emt 0:00:03]} 17. Qc2 {[%emt 0:00:04]} Bf5 {[%emt 0:00:04]} 18. Rfd1 {[%emt 0:00:02]} Qf6 {[%emt 0:00:02]} 19. g4 {[%emt 0:00:14]} Qg5 {[%emt 0:00:18]} 20. Kh1 {[%emt 0:00:02]} Be6 {[%emt 0:00:11]} 21. Qxe4 {[%emt 0:00:03]} Re8 {[%emt 0:00:12]} 22. Qg2 {[%emt 0:00:07]} Ne5 {[%emt 0:00:14]} 23. f4 {[%emt 0:00:05]} Qf6 {[%emt 0:00:14]} 24. fxe5 {[%emt 0:00:02]} Qxe5 {[%emt 0:00:02]} 25. Qf3 {[%emt 0:00:05]} Bh6 {[%emt 0:00:07]} 26. Rd3 {[%emt 0:00:10]} Kg8 {[%emt 0:00:11]} 27. Rf1 {[%emt 0:00:10]} f5 {[%emt 0:00:02]} 28. gxf5 {[%emt 0:00:12]} Bxf5 {[%emt 0:00:02]} 29. Qd5+ {[%emt 0:00:13]} Qxd5+ {[%emt 0:00:02]} 30. Rxd5 {[%emt 0:00:00]} Be4+ {[%emt 0:00:02]} 31. Bf3 {[%emt 0:00:04]} Bxd5 {[%emt 0:00:01]} 32. Bxd5+ {[%emt 0:00:01]} Kh8 {[%emt 0:00:02]} 33. e4 {[%emt 0:00:03]} b6 {[%emt 0:00:09]} 34. Rf6 {[%emt 0:00:02]} b5 {[%emt 0:00:04]} 35. Rxa6 {[%emt 0:00:05]} bxc4 {[%emt 0:00:01]} 36. bxc4 {[%emt 0:00:01]} Rf8 {[%emt 0:00:02]} 37. Kg2 {[%emt 0:00:02]} Be3 {[%emt 0:00:03]} 38. Rc6 {[%emt 0:00:10]} Rf2+ {[%emt 0:00:01]} 39. Kg3 {[%emt 0:00:01]} Rxa2 {[%emt 0:00:02]} 40. Rc8+ {[%emt 0:00:05]} Kg7 {[%emt 0:00:02]} 41. c5 {[%emt 0:00:01]} Ra3 {[%emt 0:00:06]} 42. c6 {[%emt 0:00:05]} Bg1+ {[%emt 0:00:03]} 43. Kg2 {[%emt 0:00:01]} Bb6 {[%emt 0:00:04]} 44. c7 {[%emt 0:00:04]} Rc3 {[%emt 0:00:02]} 45. Rg8+ {[%emt 0:00:02]} Kh6 {[%emt 0:00:05]} 46. c8=Q {[%emt 0:00:03]} Rxc8 {[%emt 0:00:01]} 47. Rxc8 {[%emt 0:00:01]} Kg5 {[%emt 0:00:02]} 48. Rc6 {[%emt 0:00:03]} Bd4 {[%emt 0:00:02]} 49. Rc7 {[%emt 0:00:01]} h5 {[%emt 0:00:02]} 50. Kf3 {[%emt 0:00:07]} Be5 {[%emt 0:00:01]} 51. Rc5 {[%emt 0:00:03]} Kf6 {[%emt 0:00:01]} 52. h4 {[%emt 0:00:02]} g5 {[%emt 0:00:06]} 53. hxg5+ {[%emt 0:00:03]} Kxg5 {[%emt 0:00:01]} 54. Be6 {[%emt 0:00:02]} Kf6 {[%emt 0:00:01]} 55. Bf5 {[%emt 0:00:01]} h4 {[%emt 0:00:02]} 56. Kg2 {[%emt 0:00:02]} Bg3 {[%emt 0:00:01]} 57. Kh3 {[%emt 0:00:01]} Ke7 {[%emt 0:00:02]} 58. Rc6 {[%emt 0:00:03]} Kf7 {[%emt 0:00:05]} 59. Kg4 {[%emt 0:00:02]} Kg7 {[%emt 0:00:02]} 60. Kg5 {[%emt 0:00:02]} Kf7 {[%emt 0:00:03]} 61. Ra6 {[%emt 0:00:03]} Ke7 {[%emt 0:00:01]} 62. Kg6 {[%emt 0:00:04]} Bf2 {[%emt 0:00:05]} 63. e5 {[%emt 0:00:02]} Bc5 {[%emt 0:00:04]} 64. e6 {[%emt 0:00:02]} Ke8 {[%emt 0:00:04]} 65. Rc6 {[%emt 0:00:02]} Be7 {[%emt 0:00:07]} 66. Rc8+ {[%emt 0:00:02]} Bd8 {[%emt 0:00:01]} 67. Kh5 {[%emt 0:00:04]} Ke7 {[%emt 0:00:02]} 68. Kxh4 {[%emt 0:00:02]} Kf6 {[%emt 0:00:01]} 69. Kg4 {[%emt 0:00:01]} Be7 {[%emt 0:00:02]} 70. Rc7 {[%emt 0:00:02]} Bb4 {[%emt 0:00:05]} 71. Rf7+ {[%emt 0:00:02]} Ke5 {[%emt 0:00:02]} 72. e7 {[%emt 0:00:00]} Bxe7 {[%emt 0:00:01]} 73. Rxe7+ {[%emt 0:00:02]} Kf6 {[%emt 0:00:01]} 74. Re6+ {[%emt 0:00:02]} Kf7 {[%emt 0:00:01]} 75. Kg5 {[%emt 0:00:02]} Kg7 {[%emt 0:00:02]} 76. Re7+ {[%emt 0:00:01]} Kf8 {[%emt 0:00:01]} 77. Kf6 {[%emt 0:00:02]} Kg8 {[%emt 0:00:02]} 78. Be6+ {[%emt 0:00:02]} Kf8 {[%emt 0:00:02]} 79. Rf7+ {[%emt 0:00:02]} Kg8 {[%emt 0:00:01]} 80. Ra7+ {[%emt 0:00:03]} Kf8 {[%emt 0:00:01]} 81. Ra8# {[%emt 0:00:01]} 1-0

[Event "Queens Festival Final Team 2022"]
[Site "Tornelo"]
[Date "2022.06.26"]
[Round "2.1"]
[White "Posadas, Rayelynn"]
[Black "Kosgey Sheila Jerop"]
[Result "0-1"]
[ECO "E68"]
[WhiteElo "1648"]
[BlackElo "1242"]
[Annotator "NA RC"]
[PlyCount "54"]
[EventDate "2022.06.24"]
[EventType "team-tourn"]
[EventCountry "NET"]
[SourceTitle "playchess.com"]
[Source "ChessBase"]
[SourceQuality "1"]
[WhiteTeam "England"]
[BlackTeam "Kenya"]
[WhiteTeamCountry "ENG"]
[BlackTeamCountry "KEN"]
[TimeControl "180+2"]

1. Nf3 {[%emt 0:00:02]} Nf6 {[%emt 0:00:06]} 2. g3 {[%emt 0:00:03]} g6 {[%emt 0:00:01]} 3. Bg2 {[%emt 0:00:01]} Bg7 {[%emt 0:00:02]} 4. d4 {[%emt 0:00:01]} O-O {[%emt 0:00:01]} 5. O-O {[%emt 0:00:02]} Re8 {[%emt 0:00:03]} 6. c4 {[%emt 0:00:01]} d6 {[%emt 0:00:02]} 7. Nc3 {[%emt 0:00:01]} Nbd7 {[%emt 0:00:02]} 8. b3 {[%emt 0:00:02]} e5 {[%emt 0:00:04]} 9. e4 {[%emt 0:00:02]} exd4 {[%emt 0:00:02]} 10. Nxd4 {[%emt 0:00:01]} Nc5 {[%emt 0:00:12]} 11. f3 {[%emt 0:00:10]} c6 {[%emt 0:00:05]} 12. Be3 {[%emt 0:00:12]} Qa5 {[%emt 0:00:08]} 13. Qc2 {[%emt 0:00:05]} d5 {[%emt 0:00:12]} 14. cxd5 {[%emt 0:00:23]} cxd5 {[%emt 0:00:03]} 15. Rac1 {[%emt 0:01:11]} dxe4 {[%emt 0:00:21]} 16. fxe4 {[%emt 0:00:09]} Bg4 {[%emt 0:00:17]} 17. Ndb5 {[%emt 0:00:33]} Ne6 {[%emt 0:00:35]} 18. e5 {[%emt 0:00:17]} Nd7 {[%emt 0:00:12]} 19. Nd6 {[%emt 0:00:04]} Reb8 {[%emt 0:00:17]} 20. Rxf7 {[%emt 0:00:03]} Qxe5 {[%emt 0:00:11]} 21. Qd3 {[%emt 0:00:14]} Ndc5 {[%emt 0:00:07]} 22. Qd2 {[%emt 0:00:06]} Rd8 {[%emt 0:00:06]} 23. Rcf1 {[%emt 0:00:01]} Rxd6 {[%emt 0:00:05]} 24. Qc2 {[%emt 0:00:03]} Qxe3+ {[%emt 0:00:03]} 25. Kh1 {[%emt 0:00:01]} Qd2 {[%emt 0:00:10]} 26. Qxd2 {[%emt 0:00:04]} Rxd2 {[%emt 0:00:03]} 27. Nb5 {[%emt 0:00:02]} Rad8 {[%emt 0:00:07]} 0-1

[Event "Queens Festival Final Team 2022"]
[Site "Tornelo"]
[Date "2022.06.26"]
[Round "2.1"]
[White "Mwendwa, Triza"]
[Black "Grigoryan, Meri"]
[Result "1-0"]
[ECO "D02"]
[WhiteElo "1470"]
[BlackElo "1993"]
[Annotator "NA RC"]
[PlyCount "65"]
[EventDate "2022.06.24"]
[EventType "team-tourn"]
[EventCountry "NET"]
[SourceTitle "playchess.com"]
[Source "ChessBase"]
[SourceQuality "1"]
[WhiteTeam "Kenya"]
[BlackTeam "England"]
[WhiteTeamCountry "KEN"]
[BlackTeamCountry "ENG"]
[TimeControl "180+2"]

1. d4 {[%emt 0:00:07]} d5 {[%emt 0:01:18]} 2. Bf4 {[%emt 0:00:04]} Nf6 {[%emt 0:00:06]} 3. e3 {[%emt 0:00:02]} e6 {[%emt 0:00:01]} 4. Nf3 {[%emt 0:00:04]} Bd6 {[%emt 0:00:01]} 5. Bg3 {[%emt 0:00:04]} Bxg3 {[%emt 0:00:02]} 6. hxg3 {[%emt 0:00:01]} c5 {[%emt 0:00:02]} 7. c3 {[%emt 0:00:08]} c4 {[%emt 0:00:01]} 8. Nbd2 {[%emt 0:00:03]} Nc6 {[%emt 0:00:03]} 9. Be2 {[%emt 0:00:19]} Bd7 {[%emt 0:00:02]} 10. Qc2 {[%emt 0:00:02]} b5 {[%emt 0:00:02]} 11. e4 {[%emt 0:00:02]} dxe4 {[%emt 0:00:14]} 12. Nxe4 {[%emt 0:00:03]} Nxe4 {[%emt 0:00:19]} 13. Qxe4 {[%emt 0:00:05]} f5 {[%emt 0:00:03]} 14. Qe3 {[%emt 0:00:14]} Qe7 {[%emt 0:00:01]} 15. Ng5 {[%emt 0:00:08]} h6 {[%emt 0:00:05]} 16. Bh5+ {[%emt 0:00:03]} Kf8 {[%emt 0:00:09]} 17. Nf3 {[%emt 0:00:12]} g5 {[%emt 0:00:04]} 18. Ne5 {[%emt 0:00:06]} Nxe5 {[%emt 0:00:04]} 19. Qxe5 {[%emt 0:00:03]} Qg7 {[%emt 0:00:05]} 20. Qd6+ {[%emt 0:00:07]} Qe7 {[%emt 0:00:03]} 21. Qe5 {[%emt 0:00:04]} Rh7 {[%emt 0:00:02]} 22. Bg6 {[%emt 0:00:06]} Rc8 {[%emt 0:00:31]} 23. Bxh7 {[%emt 0:00:07]} Qxh7 {[%emt 0:00:00]} 24. Qd6+ {[%emt 0:00:04]} Ke8 {[%emt 0:00:06]} 25. d5 {[%emt 0:00:18]} exd5 {[%emt 0:00:04]} 26. Qxd5 {[%emt 0:00:03]} Rc6 {[%emt 0:00:06]} 27. O-O-O {[%emt 0:00:04]} Ra6 {[%emt 0:00:11]} 28. Rhe1+ {[%emt 0:00:03]} Kd8 {[%emt 0:00:02]} 29. Qa8+ {[%emt 0:00:04]} Kc7 {[%emt 0:00:02]} 30. Rxd7+ {[%emt 0:00:07]} Qxd7 {[%emt 0:00:03]} 31. Re8 {[%emt 0:00:03]} Qc6 {[%emt 0:00:06]} 32. Qb8+ {[%emt 0:00:03]} Kd7 {[%emt 0:00:01]} 33. Qd8# {[%emt 0:00:04]} 1-0

[Event "Queens Festival Final Team 2022"]
[Site "Tornelo"]
[Date "2022.06.26"]
[Round "2.1"]
[White "Muthoni, Vivian"]
[Black "Catabay, Mae Katelyn Rose"]
[Result "0-1"]
[ECO "C00"]
[WhiteElo "1128"]
[BlackElo "1321"]
[Annotator "NA RC"]
[PlyCount "64"]
[EventDate "2022.06.24"]
[EventType "team-tourn"]
[EventCountry "NET"]
[SourceTitle "playchess.com"]
[Source "ChessBase"]
[SourceQuality "1"]
[WhiteTeam "Kenya"]
[BlackTeam "England"]
[WhiteTeamCountry "KEN"]
[BlackTeamCountry "ENG"]
[TimeControl "180+2"]

1. e4 {[%emt 0:00:02]} e6 {[%emt 0:00:07]} 2. Nf3 {[%emt 0:00:04]} d5 {[%emt 0:00:04]} 3. Bd3 {[%emt 0:00:07]} Be7 {[%emt 0:00:08]} 4. O-O {[%emt 0:00:06]} dxe4 {[%emt 0:00:04]} 5. Bxe4 {[%emt 0:00:03]} Nf6 {[%emt 0:00:03]} 6. Nc3 {[%emt 0:00:09]} Nxe4 {[%emt 0:00:04]} 7. Nxe4 {[%emt 0:00:04]} Nc6 {[%emt 0:00:03]} 8. d3 {[%emt 0:00:04]} O-O {[%emt 0:00:02]} 9. Be3 {[%emt 0:00:11]} b6 {[%emt 0:00:10]} 10. Qd2 {[%emt 0:00:03]} Bb7 {[%emt 0:00:04]} 11. Bh6 {[%emt 0:00:13]} Bf6 {[%emt 0:00:35]} 12. Bg5 {[%emt 0:00:12]} Bxg5 {[%emt 0:00:03]} 13. Nfxg5 {[%emt 0:00:08]} h6 {[%emt 0:00:06]} 14. Nf3 {[%emt 0:00:09]} f5 {[%emt 0:00:08]} 15. Ng3 {[%emt 0:00:09]} Qf6 {[%emt 0:00:05]} 16. c3 {[%emt 0:00:10]} Ne7 {[%emt 0:00:04]} 17. Qe2 {[%emt 0:00:23]} Bxf3 {[%emt 0:00:13]} 18. Qxf3 {[%emt 0:00:03]} g5 {[%emt 0:00:13]} 19. h3 {[%emt 0:00:15]} Ng6 {[%emt 0:00:05]} 20. Nh5 {[%emt 0:00:04]} Qf7 {[%emt 0:00:03]} 21. g4 {[%emt 0:00:23]} Nh4 {[%emt 0:00:03]} 22. Qg3 {[%emt 0:00:06]} f4 {[%emt 0:00:03]} 23. Qh2 {[%emt 0:00:07]} Nf3+ {[%emt 0:00:02]} 24. Kh1 {[%emt 0:00:04]} Nxh2 {[%emt 0:00:02]} 25. Kxh2 {[%emt 0:00:02]} e5 {[%emt 0:00:02]} 26. Rfe1 {[%emt 0:00:06]} Rfe8 {[%emt 0:00:06]} 27. f3 {[%emt 0:00:03]} Rad8 {[%emt 0:00:02]} 28. Rad1 {[%emt 0:00:09]} Qg6 {[%emt 0:00:04]} 29. d4 {[%emt 0:00:05]} exd4 {[%emt 0:00:11]} 30. cxd4 {[%emt 0:00:05]} Rxe1 {[%emt 0:00:06]} 31. Rxe1 {[%emt 0:00:03]} Rxd4 {[%emt 0:00:03]} 32. Re7 {[%emt 0:00:07]} Qc2+ {[%emt 0:00:05]} 0-1

[Event "Queens Festival Final Team 2022"]
[Site "Tornelo"]
[Date "2022.06.26"]
[Round "2.2"]
[White "Shohradowa, Lala"]
[Black "Moshoboro Arona"]
[Result "0-1"]
[ECO "D31"]
[WhiteElo "1856"]
[BlackElo "1555"]
[Annotator "NA RC"]
[PlyCount "84"]
[EventDate "2022.06.24"]
[EventType "team-tourn"]
[EventCountry "NET"]
[SourceTitle "playchess.com"]
[Source "ChessBase"]
[SourceQuality "1"]
[WhiteTeam "Turkmenistan"]
[BlackTeam "Botswana"]
[WhiteTeamCountry "TKM"]
[BlackTeamCountry "BOT"]
[TimeControl "180+2"]

1. d4 {[%emt 0:00:02]} e6 {[%emt 0:00:06]} 2. c4 {[%emt 0:00:05]} d5 {[%emt 0:00:04]} 3. Nc3 {[%emt 0:00:03]} Ne7 {[%emt 0:00:06]} 4. cxd5 {[%emt 0:00:03]} exd5 {[%emt 0:00:03]} 5. Nf3 {[%emt 0:00:02]} Nf5 {[%emt 0:00:20]} 6. Bf4 {[%emt 0:00:07]} Bb4 {[%emt 0:00:07]} 7. e3 {[%emt 0:00:03]} O-O {[%emt 0:00:04]} 8. Bd3 {[%emt 0:00:04]} Be6 {[%emt 0:00:07]} 9. O-O {[%emt 0:00:03]} Nc6 {[%emt 0:00:19]} 10. a3 {[%emt 0:00:05]} Bxc3 {[%emt 0:00:04]} 11. bxc3 {[%emt 0:00:01]} Nce7 {[%emt 0:00:04]} 12. h3 {[%emt 0:00:07]} Ng6 {[%emt 0:00:13]} 13. Bh2 {[%emt 0:00:02]} Qe7 {[%emt 0:00:05]} 14. Qb1 {[%emt 0:00:04]} Nd6 {[%emt 0:00:15]} 15. Ne5 {[%emt 0:00:09]} b6 {[%emt 0:00:09]} 16. a4 {[%emt 0:00:05]} Qe8 {[%emt 0:00:09]} 17. Nxg6 {[%emt 0:00:05]} fxg6 {[%emt 0:00:03]} 18. a5 {[%emt 0:00:11]} Qd7 {[%emt 0:00:05]} 19. Bxd6 {[%emt 0:00:19]} Qxd6 {[%emt 0:00:03]} 20. e4 {[%emt 0:00:08]} dxe4 {[%emt 0:00:05]} 21. Bxe4 {[%emt 0:00:02]} Bd5 {[%emt 0:00:02]} 22. Bxd5+ {[%emt 0:00:02]} Qxd5 {[%emt 0:00:01]} 23. Qb4 {[%emt 0:00:10]} Rab8 {[%emt 0:00:06]} 24. axb6 {[%emt 0:00:04]} axb6 {[%emt 0:00:09]} 25. Ra7 {[%emt 0:00:03]} Rb7 {[%emt 0:00:02]} 26. Rxb7 {[%emt 0:00:05]} Qxb7 {[%emt 0:00:02]} 27. Qb3+ {[%emt 0:00:02]} Kh8 {[%emt 0:00:03]} 28. Re1 {[%emt 0:00:01]} h5 {[%emt 0:00:04]} 29. Re7 {[%emt 0:00:20]} Qc6 {[%emt 0:00:04]} 30. Re6 {[%emt 0:00:08]} Qd7 {[%emt 0:00:07]} 31. Rxg6 {[%emt 0:00:14]} Qf5 {[%emt 0:00:02]} 32. Rg3 {[%emt 0:00:16]} Qxf2+ {[%emt 0:00:02]} 33. Kh2 {[%emt 0:00:02]} Qf4 {[%emt 0:00:03]} 34. Qd5 {[%emt 0:00:18]} h4 {[%emt 0:00:11]} 35. Qh5+ {[%emt 0:00:02]} Kg8 {[%emt 0:00:02]} 36. Qd5+ {[%emt 0:00:02]} Rf7 {[%emt 0:00:07]} 37. Qd8+ {[%emt 0:00:04]} Kh7 {[%emt 0:00:04]} 38. Kg1 {[%emt 0:00:08]} Qf2+ {[%emt 0:00:03]} 39. Kh1 {[%emt 0:00:03]} Qe1+ {[%emt 0:00:04]} 40. Kh2 {[%emt 0:00:03]} Qxg3+ {[%emt 0:00:02]} 41. Kg1 {[%emt 0:00:01]} Qe1+ {[%emt 0:00:08]} 42. Kh2 {[%emt 0:00:03]} Rf1 {[%emt 0:00:05]} 0-1

[Event "Queens Festival Final Team 2022"]
[Site "Tornelo"]
[Date "2022.06.26"]
[Round "2.2"]
[White "Francis, Onkemetse"]
[Black "Agajanova, Meryem"]
[Result "0-1"]
[ECO "C01"]
[WhiteElo "1777"]
[BlackElo "1783"]
[Annotator "NA RC"]
[PlyCount "108"]
[EventDate "2022.06.24"]
[EventType "team-tourn"]
[EventCountry "NET"]
[SourceTitle "playchess.com"]
[Source "ChessBase"]
[SourceQuality "1"]
[WhiteTeam "Botswana"]
[BlackTeam "Turkmenistan"]
[WhiteTeamCountry "BOT"]
[BlackTeamCountry "TKM"]
[TimeControl "180+2"]

1. e4 {[%emt 0:00:02]} e6 {[%emt 0:00:04]} 2. d4 {[%emt 0:00:03]} d5 {[%emt 0:00:02]} 3. exd5 {[%emt 0:00:03]} exd5 {[%emt 0:00:01]} 4. Bd3 {[%emt 0:00:02]} Nf6 {[%emt 0:00:03]} 5. Nf3 {[%emt 0:00:02]} Bd6 {[%emt 0:00:01]} 6. O-O {[%emt 0:00:03]} O-O {[%emt 0:00:02]} 7. c3 {[%emt 0:00:11]} c6 {[%emt 0:00:02]} 8. Bg5 {[%emt 0:00:02]} Bg4 {[%emt 0:00:02]} 9. Nbd2 {[%emt 0:00:05]} Nbd7 {[%emt 0:00:01]} 10. h3 {[%emt 0:00:04]} Bh5 {[%emt 0:00:02]} 11. Qc2 {[%emt 0:00:03]} Qc7 {[%emt 0:00:03]} 12. Rfe1 {[%emt 0:00:04]} Rfe8 {[%emt 0:00:01]} 13. Bf5 {[%emt 0:00:32]} Bf4 {[%emt 0:00:07]} 14. Bxf4 {[%emt 0:00:14]} Qxf4 {[%emt 0:00:04]} 15. Bd3 {[%emt 0:00:07]} Bxf3 {[%emt 0:00:15]} 16. Nxf3 {[%emt 0:00:03]} Ne4 {[%emt 0:00:02]} 17. Re2 {[%emt 0:00:08]} Re6 {[%emt 0:00:11]} 18. Rae1 {[%emt 0:00:04]} Rae8 {[%emt 0:00:02]} 19. Nh2 {[%emt 0:00:08]} Ndf6 {[%emt 0:00:37]} 20. g3 {[%emt 0:00:11]} Qd6 {[%emt 0:00:13]} 21. Kg2 {[%emt 0:00:06]} Ng5 {[%emt 0:00:17]} 22. Rxe6 {[%emt 0:00:07]} Rxe6 {[%emt 0:00:02]} 23. Qd2 {[%emt 0:00:18]} h6 {[%emt 0:00:21]} 24. h4 {[%emt 0:00:08]} Nge4 {[%emt 0:00:01]} 25. Qc2 {[%emt 0:00:06]} Qe7 {[%emt 0:00:10]} 26. Re3 {[%emt 0:00:09]} Nd6 {[%emt 0:00:20]} 27. Rxe6 {[%emt 0:00:03]} Qxe6 {[%emt 0:00:02]} 28. Qe2 {[%emt 0:00:02]} Qxe2 {[%emt 0:00:03]} 29. Bxe2 {[%emt 0:00:02]} Kf8 {[%emt 0:00:02]} 30. Nf3 {[%emt 0:00:07]} Ke7 {[%emt 0:00:02]} 31. Ne5 {[%emt 0:00:02]} Nd7 {[%emt 0:00:03]} 32. Nd3 {[%emt 0:00:06]} Nc4 {[%emt 0:00:03]} 33. b3 {[%emt 0:00:10]} Nd6 {[%emt 0:00:02]} 34. f3 {[%emt 0:00:03]} b6 {[%emt 0:00:07]} 35. Bf1 {[%emt 0:00:05]} c5 {[%emt 0:00:03]} 36. dxc5 {[%emt 0:00:03]} bxc5 {[%emt 0:00:02]} 37. Nb2 {[%emt 0:00:03]} Nb6 {[%emt 0:00:05]} 38. Kf2 {[%emt 0:00:02]} Kd7 {[%emt 0:00:03]} 39. Ke3 {[%emt 0:00:03]} Kc6 {[%emt 0:00:01]} 40. Nd3 {[%emt 0:00:06]} Nb5 {[%emt 0:00:10]} 41. Ne5+ {[%emt 0:00:12]} Kd6 {[%emt 0:00:01]} 42. Nxf7+ {[%emt 0:00:02]} Ke7 {[%emt 0:00:02]} 43. Bxb5 {[%emt 0:00:05]} Kxf7 {[%emt 0:00:02]} 44. Kf4 {[%emt 0:00:02]} Kf6 {[%emt 0:00:01]} 45. g4 {[%emt 0:00:02]} g5+ {[%emt 0:00:03]} 46. hxg5+ {[%emt 0:00:03]} hxg5+ {[%emt 0:00:02]} 47. Ke3 {[%emt 0:00:00]} Ke5 {[%emt 0:00:01]} 48. Bd3 {[%emt 0:00:03]} d4+ {[%emt 0:00:04]} 49. cxd4+ {[%emt 0:00:02]} cxd4+ {[%emt 0:00:02]} 50. Kf2 {[%emt 0:00:02]} Nd5 {[%emt 0:00:04]} 51. b4 {[%emt 0:00:05]} Nxb4 {[%emt 0:00:02]} 52. Bc4 {[%emt 0:00:02]} Kf4 {[%emt 0:00:03]} 53. a4 {[%emt 0:00:04]} Ke5 {[%emt 0:00:03]} 54. Ke2 {[%emt 0:00:02]} Kd6 {[%emt 0:00:02]} 0-1

[Event "Queens Festival Final Team 2022"]
[Site "Tornelo"]
[Date "2022.06.26"]
[Round "2.2"]
[White "Marape, Naledi"]
[Black "Ovezdurdiyeva, Jemal"]
[Result "1-0"]
[ECO "B92"]
[WhiteElo "1707"]
[BlackElo "2061"]
[Annotator "NA RC"]
[PlyCount "117"]
[EventDate "2022.06.24"]
[EventType "team-tourn"]
[EventCountry "NET"]
[SourceTitle "playchess.com"]
[Source "ChessBase"]
[SourceQuality "1"]
[WhiteTeam "Botswana"]
[BlackTeam "Turkmenistan"]
[WhiteTeamCountry "BOT"]
[BlackTeamCountry "TKM"]
[TimeControl "180+2"]

1. e4 {[%emt 0:00:02]} c5 {[%emt 0:00:05]} 2. Nf3 {[%emt 0:00:07]} d6 {[%emt 0:00:01]} 3. d4 {[%emt 0:00:04]} cxd4 {[%emt 0:00:01]} 4. Nxd4 {[%emt 0:00:04]} Nf6 {[%emt 0:00:01]} 5. Nc3 {[%emt 0:00:04]} a6 {[%emt 0:00:01]} 6. Be2 {[%emt 0:00:11]} e5 {[%emt 0:00:02]} 7. Nb3 {[%emt 0:00:04]} Be7 {[%emt 0:00:01]} 8. Be3 {[%emt 0:00:04]} Be6 {[%emt 0:00:05]} 9. Qd2 {[%emt 0:00:05]} Nc6 {[%emt 0:00:07]} 10. f3 {[%emt 0:00:03]} h5 {[%emt 0:00:09]} 11. O-O-O {[%emt 0:00:08]} Rc8 {[%emt 0:00:03]} 12. Kb1 {[%emt 0:00:03]} Nb8 {[%emt 0:00:15]} 13. Bg5 {[%emt 0:00:09]} Nbd7 {[%emt 0:00:04]} 14. Bxf6 {[%emt 0:00:20]} Nxf6 {[%emt 0:00:02]} 15. Nd5 {[%emt 0:00:04]} Nxd5 {[%emt 0:00:03]} 16. exd5 {[%emt 0:00:04]} Bf5 {[%emt 0:00:01]} 17. Bd3 {[%emt 0:00:05]} Bg5 {[%emt 0:00:06]} 18. Qe2 {[%emt 0:00:05]} Bxd3 {[%emt 0:00:03]} 19. Rxd3 {[%emt 0:00:06]} O-O {[%emt 0:00:01]} 20. h4 {[%emt 0:00:04]} Bf6 {[%emt 0:00:06]} 21. g4 {[%emt 0:00:03]} Rc4 {[%emt 0:00:33]} 22. gxh5 {[%emt 0:00:14]} Bxh4 {[%emt 0:00:12]} 23. Nd2 {[%emt 0:00:12]} Rf4 {[%emt 0:00:11]} 24. Ne4 {[%emt 0:00:04]} f5 {[%emt 0:00:14]} 25. Nc3 {[%emt 0:00:16]} Bg5 {[%emt 0:00:14]} 26. Rdd1 {[%emt 0:00:45]} Bh6 {[%emt 0:00:03]} 27. Rdg1 {[%emt 0:00:03]} Qe7 {[%emt 0:00:05]} 28. Rg6 {[%emt 0:00:03]} Rf6 {[%emt 0:00:04]} 29. Rhg1 {[%emt 0:00:04]} Rxg6 {[%emt 0:00:03]} 30. Rxg6 {[%emt 0:00:03]} Rh4 {[%emt 0:00:04]} 31. a3 {[%emt 0:00:05]} Rxh5 {[%emt 0:00:02]} 32. f4 {[%emt 0:00:05]} Bxf4 {[%emt 0:00:04]} 33. Qxh5 {[%emt 0:00:05]} e4 {[%emt 0:00:07]} 34. Qxf5 {[%emt 0:00:02]} Be5 {[%emt 0:00:10]} 35. Ne2 {[%emt 0:00:05]} e3 {[%emt 0:00:02]} 36. Qe6+ {[%emt 0:00:02]} Qxe6 {[%emt 0:00:07]} 37. Rxe6 {[%emt 0:00:00]} Kf7 {[%emt 0:00:03]} 38. Kc1 {[%emt 0:00:04]} g5 {[%emt 0:00:02]} 39. c3 {[%emt 0:00:02]} g4 {[%emt 0:00:01]} 40. Kd1 {[%emt 0:00:01]} g3 {[%emt 0:00:02]} 41. Ke1 {[%emt 0:00:01]} g2 {[%emt 0:00:02]} 42. Ng1 {[%emt 0:00:03]} Bh2 {[%emt 0:00:04]} 43. Nf3 {[%emt 0:00:01]} g1=Q+ {[%emt 0:00:15]} 44. Nxg1 {[%emt 0:00:03]} Bxg1 {[%emt 0:00:00]} 45. Kf1 {[%emt 0:00:02]} Bf2 {[%emt 0:00:01]} 46. Rxd6 {[%emt 0:00:02]} Ke7 {[%emt 0:00:03]} 47. Re6+ {[%emt 0:00:02]} Kd7 {[%emt 0:00:01]} 48. Rb6 {[%emt 0:00:03]} Kc7 {[%emt 0:00:01]} 49. Rf6 {[%emt 0:00:02]} Bh4 {[%emt 0:00:04]} 50. Rf4 {[%emt 0:00:04]} Bg5 {[%emt 0:00:07]} 51. Re4 {[%emt 0:00:01]} Kd6 {[%emt 0:00:02]} 52. c4 {[%emt 0:00:02]} Kc5 {[%emt 0:00:04]} 53. b3 {[%emt 0:00:02]} Bh6 {[%emt 0:00:04]} 54. Ke2 {[%emt 0:00:01]} Bg5 {[%emt 0:00:01]} 55. Re7 {[%emt 0:00:02]} b5 {[%emt 0:00:05]} 56. Rxe3 {[%emt 0:00:02]} Bxe3 {[%emt 0:00:04]} 57. Kxe3 {[%emt 0:00:02]} bxc4 {[%emt 0:00:00]} 58. bxc4 {[%emt 0:00:04]} Kd6 {[%emt 0:00:00]} 59. Kd4 {[%emt 0:00:04]} 1-0